[Event "*** MasterClass Titled Tuesday Blitz"]
[Site "Chess.com"]
[Date "2017.07.04"]
[Round "9"]
[White "dolynachess"]
[Black "scrapnel"]
[Result "0-1"]
[WhiteElo "2343"]
[BlackElo "2535"]
[TimeControl "180+2"]
[EndTime "15:07:55 PDT"]
[Termination "scrapnel won by checkmate"]

1. c4 {[%clk 0:03:01.9]} 1... e5 {[%clk 0:02:58]} 2. e3 {[%clk 0:02:54.9]} 2...
Nf6 {[%clk 0:02:56.7]} 3. Nc3 {[%clk 0:02:55.5]} 3... Nc6 {[%clk 0:02:54.2]} 4.
d4 {[%clk 0:02:55.8]} 4... exd4 {[%clk 0:02:52.8]} 5. exd4 {[%clk 0:02:56.8]}
5... Bb4 {[%clk 0:02:52.9]} 6. Nf3 {[%clk 0:02:53.8]} 6... O-O {[%clk
0:02:51.3]} 7. Be2 {[%clk 0:02:55.3]} 7... d5 {[%clk 0:02:50.2]} 8. O-O {[%clk
0:02:48.1]} 8... dxc4 {[%clk 0:02:50.9]} 9. Bxc4 {[%clk 0:02:49]} 9... Bg4
{[%clk 0:02:49.6]} 10. Be3 {[%clk 0:02:18.7]} 10... Ne7 {[%clk 0:02:35.7]} 11.
h3 {[%clk 0:02:13.9]} 11... Bh5 {[%clk 0:02:35.5]} 12. Bg5 {[%clk 0:02:08.7]}
12... Qd6 {[%clk 0:02:24.6]} 13. a3 {[%clk 0:02:02.1]} 13... Bxc3 {[%clk
0:02:23]} 14. bxc3 {[%clk 0:02:02.8]} 14... Ned5 {[%clk 0:02:17.2]} 15. Qd3
{[%clk 0:01:35.4]} 15... Bg6 {[%clk 0:02:07.3]} 16. Qd1 {[%clk 0:01:04.6]} 16...
Nxc3 {[%clk 0:01:57.6]} 17. Qb3 {[%clk 0:01:04.8]} 17... Nfe4 {[%clk 0:01:51.9]}
18. Be3 {[%clk 0:00:20.8]} 18... b5 {[%clk 0:01:48.4]} 19. Bd3 {[%clk
0:00:12.4]} 19... Nd5 {[%clk 0:01:03.2]} 20. Rfc1 {[%clk 0:00:10.2]} 20... c6
{[%clk 0:00:53.8]} 21. Ne5 {[%clk 0:00:10.2]} 21... Nxe3 {[%clk 0:00:49.9]} 22.
fxe3 {[%clk 0:00:12.1]} 22... c5 {[%clk 0:00:34.3]} 23. Nxg6 {[%clk 0:00:10.6]}
23... c4 {[%clk 0:00:33.9]} 24. Qxb5 {[%clk 0:00:04.5]} 24... cxd3 {[%clk
0:00:33.4]} 25. Ne5 {[%clk 0:00:05]} 25... d2 {[%clk 0:00:33.9]} 26. Rd1 {[%clk
0:00:06.3]} 26... Nc3 {[%clk 0:00:32.3]} 27. Qd3 {[%clk 0:00:06.2]} 27... Nxd1
{[%clk 0:00:32.1]} 28. Rxd1 {[%clk 0:00:08.1]} 28... Rac8 {[%clk 0:00:32.6]} 29.
Rxd2 {[%clk 0:00:09]} 29... Rc1+ {[%clk 0:00:32.8]} 30. Kf2 {[%clk 0:00:10.2]}
30... Qf6+ {[%clk 0:00:29.5]} 31. Nf3 {[%clk 0:00:10.2]} 31... Rfc8 {[%clk
0:00:29.9]} 32. Qb3 {[%clk 0:00:08.4]} 32... R1c3 {[%clk 0:00:29]} 33. Qb7
{[%clk 0:00:07.8]} 33... a5 {[%clk 0:00:26.8]} 34. a4 {[%clk 0:00:07.9]} 34...
h6 {[%clk 0:00:27.3]} 35. e4 {[%clk 0:00:08.5]} 35... Qf4 {[%clk 0:00:27.9]} 36.
Re2 {[%clk 0:00:09.4]} 36... Rc1 {[%clk 0:00:22.7]} 37. e5 {[%clk 0:00:08.3]}
37... R8c3 {[%clk 0:00:20]} 38. Qa8+ {[%clk 0:00:07.2]} 38... Kh7 {[%clk
0:00:20.2]} 39. Qxa5 {[%clk 0:00:08.5]} 39... Rxf3+ {[%clk 0:00:15.6]} 40. gxf3
{[%clk 0:00:08.7]} 40... Qh2+ {[%clk 0:00:16.6]} 41. Ke3 {[%clk 0:00:09.8]}
41... Qg1+ {[%clk 0:00:16.9]} 42. Ke4 {[%clk 0:00:08.7]} 42... Qg6+ {[%clk
0:00:16.6]} 43. Ke3 {[%clk 0:00:07.8]} 43... Qg5+ {[%clk 0:00:17.7]} 44. Ke4
{[%clk 0:00:08.8]} 44... Qg6+ {[%clk 0:00:18.8]} 45. Ke3 {[%clk 0:00:09.9]}
45... Ra1 {[%clk 0:00:19.1]} 46. Qc3 {[%clk 0:00:09.4]} 46... Qg1+ {[%clk
0:00:17.3]} 47. Ke4 {[%clk 0:00:09.9]} 47... Rxa4 {[%clk 0:00:14.9]} 48. Qd3
{[%clk 0:00:10]} 48... Qa1 {[%clk 0:00:14.2]} 49. Ke3+ {[%clk 0:00:10.7]} 49...
g6 {[%clk 0:00:15.4]} 50. Rc2 {[%clk 0:00:11.8]} 50... Ra3 {[%clk 0:00:16.5]}
51. Qxa3 {[%clk 0:00:11.8]} 51... Qxa3+ {[%clk 0:00:16.9]} 52. Ke4 {[%clk
0:00:13.7]} 52... Qb3 {[%clk 0:00:17.6]} 53. Rc5 {[%clk 0:00:14.2]} 53... Qb1+
{[%clk 0:00:16.3]} 54. Ke3 {[%clk 0:00:15.1]} 54... Qe1+ {[%clk 0:00:16.8]} 55.
Kf4 {[%clk 0:00:15.4]} 55... g5+ {[%clk 0:00:16.7]} 56. Kf5 {[%clk 0:00:14.7]}
56... Qe3 {[%clk 0:00:18.1]} 57. Kg4 {[%clk 0:00:13]} 57... Qf4+ {[%clk
0:00:18.5]} 58. Kh5 {[%clk 0:00:14.9]} 58... Qh4# {[%clk 0:00:19.5]} 0-1

[Event "*** MasterClass Titled Tuesday Blitz"]
[Site "Chess.com"]
[Date "2017.07.04"]
[Round "9"]
[White "Tonychess32"]
[Black "abubakrtagelsir"]
[Result "0-1"]
[WhiteElo "2433"]
[BlackElo "2189"]
[TimeControl "180+2"]
[EndTime "15:08:52 PDT"]
[Termination "abubakrtagelsir won by resignation"]

1. e4 {[%clk 0:03:01.9]} 1... d6 {[%clk 0:03:00.2]} 2. Nf3 {[%clk 0:03:02.6]}
2... Nf6 {[%clk 0:03:01.1]} 3. Nc3 {[%clk 0:03:02.1]} 3... g6 {[%clk 0:03:01.6]}
4. d4 {[%clk 0:03:03.4]} 4... Bg7 {[%clk 0:03:02.2]} 5. Be2 {[%clk 0:03:04.6]}
5... O-O {[%clk 0:03:02.6]} 6. O-O {[%clk 0:03:05.4]} 6... Nc6 {[%clk
0:03:02.9]} 7. h3 {[%clk 0:03:06]} 7... e5 {[%clk 0:03:03.6]} 8. d5 {[%clk
0:03:04.7]} 8... Ne7 {[%clk 0:03:02.1]} 9. Nd2 {[%clk 0:03:05.9]} 9... c6 {[%clk
0:03:02.5]} 10. dxc6 {[%clk 0:03:05.1]} 10... bxc6 {[%clk 0:03:02.6]} 11. b3
{[%clk 0:03:06]} 11... d5 {[%clk 0:03:01.9]} 12. Ba3 {[%clk 0:03:04.8]} 12...
Re8 {[%clk 0:03:01.7]} 13. Bd3 {[%clk 0:02:55.7]} 13... Be6 {[%clk 0:02:55.4]}
14. Na4 {[%clk 0:02:54.9]} 14... Nd7 {[%clk 0:02:35.8]} 15. c4 {[%clk
0:02:47.5]} 15... Rc8 {[%clk 0:02:18.1]} 16. Qc2 {[%clk 0:02:45]} 16... d4
{[%clk 0:01:56.8]} 17. c5 {[%clk 0:02:43.3]} 17... Kh8 {[%clk 0:01:44.9]} 18.
Nb2 {[%clk 0:02:43.8]} 18... Qa5 {[%clk 0:01:41.7]} 19. Nbc4 {[%clk 0:02:44.2]}
19... Qa6 {[%clk 0:01:17]} 20. Nd6 {[%clk 0:02:44.9]} 20... Qxa3 {[%clk
0:01:16.8]} 21. f4 {[%clk 0:02:31.8]} 21... exf4 {[%clk 0:01:02]} 22. Rac1
{[%clk 0:02:16.4]} 22... Rf8 {[%clk 0:00:52.8]} 23. Nxc8 {[%clk 0:02:13.9]}
23... Nxc8 {[%clk 0:00:53.3]} 24. Rxf4 {[%clk 0:02:14.5]} 24... Bh6 {[%clk
0:00:51.3]} 25. Rf3 {[%clk 0:02:15.8]} 25... Ne5 {[%clk 0:00:50.9]} 26. Rff1
{[%clk 0:02:13.1]} 26... Ne7 {[%clk 0:00:40]} 27. Kh1 {[%clk 0:02:08.5]} 27...
Nd7 {[%clk 0:00:38.4]} 28. Bc4 {[%clk 0:01:59.4]} 28... Nxc5 {[%clk 0:00:35.3]}
29. Bxe6 {[%clk 0:02:00.2]} 29... Nxe6 {[%clk 0:00:35.9]} 30. Nc4 {[%clk
0:01:51.5]} 30... Qa6 {[%clk 0:00:35.8]} 31. Rcd1 {[%clk 0:01:52.6]} 31... Bg7
{[%clk 0:00:33.7]} 32. Rf3 {[%clk 0:01:33.6]} 32... c5 {[%clk 0:00:31.5]} 33. e5
{[%clk 0:01:29.7]} 33... Nf5 {[%clk 0:00:29.2]} 34. Kh2 {[%clk 0:01:21.6]} 34...
Qc6 {[%clk 0:00:25.8]} 35. Rdf1 {[%clk 0:01:19.7]} 35... Qd5 {[%clk 0:00:24]}
36. Re1 {[%clk 0:01:18.1]} 36... Nh4 {[%clk 0:00:18.5]} 37. Rff1 {[%clk
0:01:16.1]} 37... Nf5 {[%clk 0:00:19.2]} 38. g3 {[%clk 0:01:11.1]} 38... h5
{[%clk 0:00:17.3]} 39. Qd3 {[%clk 0:01:09]} 39... h4 {[%clk 0:00:16.9]} 40. gxh4
{[%clk 0:01:07.5]} 40... Nxh4 {[%clk 0:00:17.6]} 41. Re4 {[%clk 0:01:05.5]}
41... Nf5 {[%clk 0:00:17.7]} 42. h4 {[%clk 0:00:59.2]} 42... Kg8 {[%clk
0:00:16.1]} 43. h5 {[%clk 0:00:58.3]} 43... Ng5 {[%clk 0:00:17.1]} 44. Rxf5
{[%clk 0:00:55.3]} 44... Qxe4 {[%clk 0:00:16.6]} 45. Qxe4 {[%clk 0:00:53]} 45...
Nxe4 {[%clk 0:00:17.4]} 46. Rf3 {[%clk 0:00:54.4]} 46... gxh5 {[%clk 0:00:17.5]}
47. Rh3 {[%clk 0:00:52.2]} 47... Re8 {[%clk 0:00:16.9]} 48. Rxh5 {[%clk
0:00:52.7]} 48... d3 {[%clk 0:00:18.1]} 49. Kg2 {[%clk 0:00:49.2]} 49... d2
{[%clk 0:00:18.4]} 50. Rh1 {[%clk 0:00:48.6]} 50... Rd8 {[%clk 0:00:18.7]} 51.
Kf3 {[%clk 0:00:47.1]} 51... Nc3 {[%clk 0:00:19.4]} 52. Nxd2 {[%clk 0:00:45.2]}
52... Rxd2 {[%clk 0:00:19.8]} 53. Ke3 {[%clk 0:00:43.5]} 53... Rxa2 {[%clk
0:00:20.1]} 54. e6 {[%clk 0:00:43.6]} 54... fxe6 {[%clk 0:00:21]} 55. Kf4 {[%clk
0:00:41.9]} 55... Rb2 {[%clk 0:00:21.6]} 56. Ra1 {[%clk 0:00:41.6]} 56... Nb5
{[%clk 0:00:20]} 57. Ra6 {[%clk 0:00:41.9]} 57... Rxb3 {[%clk 0:00:20.8]} 58.
Rxe6 {[%clk 0:00:42.5]} 58... Rb4+ {[%clk 0:00:22]} 59. Kg5 {[%clk 0:00:42.6]}
59... Kf7 {[%clk 0:00:23]} 60. Rc6 {[%clk 0:00:42.5]} 60... Bd4 {[%clk
0:00:22.6]} 61. Kf5 {[%clk 0:00:40.5]} 61... Ke7 {[%clk 0:00:23.6]} 62. Re6+
{[%clk 0:00:41.3]} 62... Kd7 {[%clk 0:00:24.1]} 63. Rh6 {[%clk 0:00:42.8]} 63...
a5 {[%clk 0:00:24.5]} 64. Rh7+ {[%clk 0:00:43.1]} 64... Kd6 {[%clk 0:00:25.3]}
65. Rh6+ {[%clk 0:00:43.5]} 65... Kd5 {[%clk 0:00:25.8]} 66. Rh7 {[%clk
0:00:39.3]} 66... a4 {[%clk 0:00:26.3]} 67. Rd7+ {[%clk 0:00:40.2]} 67... Kc4
{[%clk 0:00:27]} 68. Ke4 {[%clk 0:00:40.6]} 68... a3 {[%clk 0:00:27.2]} 69. Ra7
{[%clk 0:00:39]} 69... Nxa7 {[%clk 0:00:27.5]} 0-1

[Event "*** MasterClass Titled Tuesday Blitz"]
[Site "Chess.com"]
[Date "2017.07.04"]
[Round "10"]
[White "Godzillator"]
[Black "kleinebeer98"]
[Result "0-1"]
[WhiteElo "2294"]
[BlackElo "2464"]
[TimeControl "180+2"]
[EndTime "15:12:23 PDT"]
[Termination "kleinebeer98 won by resignation"]

1. d4 {[%clk 0:03:01.9]} 1... Nf6 {[%clk 0:03:01.3]} 2. c4 {[%clk 0:03:03.3]}
2... e6 {[%clk 0:03:02.3]} 3. Nc3 {[%clk 0:03:04.7]} 3... Bb4 {[%clk 0:03:03.7]}
4. Qc2 {[%clk 0:03:05.7]} 4... O-O {[%clk 0:03:04.4]} 5. a3 {[%clk 0:03:06.4]}
5... Bxc3+ {[%clk 0:03:05.1]} 6. Qxc3 {[%clk 0:03:08.1]} 6... b6 {[%clk
0:03:05.8]} 7. Bg5 {[%clk 0:03:09]} 7... Bb7 {[%clk 0:03:06.7]} 8. e3 {[%clk
0:03:10.4]} 8... h6 {[%clk 0:03:06.6]} 9. Bh4 {[%clk 0:03:11]} 9... d6 {[%clk
0:03:08]} 10. f3 {[%clk 0:03:11.9]} 10... Nbd7 {[%clk 0:03:09.5]} 11. Bd3 {[%clk
0:03:13]} 11... Re8 {[%clk 0:03:09.4]} 12. Ne2 {[%clk 0:03:14.1]} 12... e5
{[%clk 0:03:10.5]} 13. Bf5 {[%clk 0:03:11.1]} 13... exd4 {[%clk 0:03:10.6]} 14.
exd4 {[%clk 0:03:12.3]} 14... Qe7 {[%clk 0:03:09.8]} 15. Qd3 {[%clk 0:03:05.2]}
15... Nf8 {[%clk 0:03:00.5]} 16. Rd1 {[%clk 0:02:48.6]} 16... g6 {[%clk
0:02:54.4]} 17. Bh3 {[%clk 0:02:45.5]} 17... g5 {[%clk 0:02:48.4]} 18. Bf2
{[%clk 0:02:44.7]} 18... Ng6 {[%clk 0:02:48.4]} 19. g3 {[%clk 0:02:38.7]} 19...
Qxe2+ {[%clk 0:02:49.8]} 20. Qxe2 {[%clk 0:02:36.9]} 20... Bxf3 {[%clk
0:02:51.7]} 21. Qxe8+ {[%clk 0:02:31.9]} 21... Rxe8+ {[%clk 0:02:53.6]} 22. Kd2
{[%clk 0:02:32.4]} 22... Re2+ {[%clk 0:02:54.8]} 23. Kd3 {[%clk 0:02:33.4]}
23... Rxf2 {[%clk 0:02:55.1]} 24. Rhf1 {[%clk 0:02:33.8]} 24... Be2+ {[%clk
0:02:51.8]} 25. Ke3 {[%clk 0:02:34.8]} 25... Rxf1 {[%clk 0:02:51.8]} 0-1

[Event "*** MasterClass Titled Tuesday Blitz"]
[Site "Chess.com"]
[Date "2017.07.04"]
[Round "10"]
[White "Noukii"]
[Black "TregubovP"]
[Result "1/2-1/2"]
[WhiteElo "2588"]
[BlackElo "2448"]
[TimeControl "180+2"]
[EndTime "15:15:10 PDT"]
[Termination "Game drawn by repetition"]

1. d4 {[%clk 0:03:01.9]} 1... Nf6 {[%clk 0:02:59.8]} 2. Nf3 {[%clk 0:03:02.3]}
2... c5 {[%clk 0:03:00.4]} 3. d5 {[%clk 0:03:03.3]} 3... b5 {[%clk 0:03:00.9]}
4. c4 {[%clk 0:03:03.9]} 4... b4 {[%clk 0:03:00.2]} 5. a3 {[%clk 0:03:04.7]}
5... g6 {[%clk 0:02:54.4]} 6. axb4 {[%clk 0:03:06.3]} 6... cxb4 {[%clk
0:02:55.6]} 7. e4 {[%clk 0:03:08]} 7... Nxe4 {[%clk 0:02:56.1]} 8. Qd4 {[%clk
0:03:08.6]} 8... Nf6 {[%clk 0:02:57.7]} 9. Rxa7 {[%clk 0:03:09.7]} 9... Rxa7
{[%clk 0:02:57.7]} 10. Qxa7 {[%clk 0:03:11.6]} 10... Na6 {[%clk 0:02:57.8]} 11.
Be3 {[%clk 0:03:04.2]} 11... d6 {[%clk 0:02:58.1]} 12. Nbd2 {[%clk 0:02:31.8]}
12... Bg7 {[%clk 0:02:58]} 13. Be2 {[%clk 0:02:27.6]} 13... O-O {[%clk
0:02:57.8]} 14. O-O {[%clk 0:02:29.2]} 14... Nd7 {[%clk 0:02:56.7]} 15. Bd4
{[%clk 0:02:28.6]} 15... Ndc5 {[%clk 0:02:47.4]} 16. Bxg7 {[%clk 0:02:23.6]}
16... Kxg7 {[%clk 0:02:48.9]} 17. Ra1 {[%clk 0:02:24.9]} 17... Qd7 {[%clk
0:02:45.7]} 18. Qb6 {[%clk 0:02:16.5]} 18... Bb7 {[%clk 0:02:34]} 19. Nd4 {[%clk
0:02:13.2]} 19... Rb8 {[%clk 0:02:33.9]} 20. Qb5 {[%clk 0:01:59.1]} 20... Bc8
{[%clk 0:02:12]} 21. Qa5 {[%clk 0:01:47.8]} 21... Ra8 {[%clk 0:02:10.3]} 22. Qb6
{[%clk 0:01:42.7]} 22... Rb8 {[%clk 0:02:09.8]} 23. Qa5 {[%clk 0:01:38.4]} 23...
Ra8 {[%clk 0:02:02.7]} 24. Qb6 {[%clk 0:01:39.1]} 24... Rb8 {[%clk 0:01:59.3]}
25. Qa5 {[%clk 0:01:33.8]} 25... Ra8 {[%clk 0:01:30.6]} 26. Qb6 {[%clk
0:01:01.3]} 1/2-1/2

[Event "*** MasterClass Titled Tuesday Blitz"]
[Site "Chess.com"]
[Date "2017.07.04"]
[Round "10"]
[White "scrapnel"]
[Black "vpantev"]
[Result "1/2-1/2"]
[WhiteElo "2533"]
[BlackElo "2460"]
[TimeControl "180+2"]
[EndTime "15:16:25 PDT"]
[Termination "Game drawn by repetition"]

1. d4 {[%clk 0:02:55.5]} 1... Nf6 {[%clk 0:02:57.8]} 2. Nf3 {[%clk 0:02:56.3]}
2... e6 {[%clk 0:02:58.1]} 3. Bg5 {[%clk 0:02:56.8]} 3... h6 {[%clk 0:02:58.4]}
4. Bh4 {[%clk 0:02:57.2]} 4... b6 {[%clk 0:02:56.1]} 5. Nbd2 {[%clk 0:02:57]}
5... c5 {[%clk 0:02:56]} 6. e4 {[%clk 0:02:52.9]} 6... Be7 {[%clk 0:02:52.6]} 7.
e5 {[%clk 0:02:52.6]} 7... Nd5 {[%clk 0:02:47.2]} 8. Bxe7 {[%clk 0:02:53.2]}
8... Qxe7 {[%clk 0:02:47.9]} 9. Ne4 {[%clk 0:02:51.3]} 9... O-O {[%clk
0:02:47.7]} 10. c3 {[%clk 0:02:50.9]} 10... cxd4 {[%clk 0:02:48.2]} 11. cxd4
{[%clk 0:02:51.2]} 11... Ba6 {[%clk 0:02:48.7]} 12. Bxa6 {[%clk 0:02:49.6]}
12... Nxa6 {[%clk 0:02:49.5]} 13. O-O {[%clk 0:02:49.5]} 13... Nab4 {[%clk
0:02:34.4]} 14. a3 {[%clk 0:02:47.8]} 14... Nc6 {[%clk 0:02:35.2]} 15. Rc1
{[%clk 0:02:43]} 15... f6 {[%clk 0:02:35.1]} 16. b4 {[%clk 0:02:39.5]} 16...
fxe5 {[%clk 0:02:31]} 17. dxe5 {[%clk 0:02:38.7]} 17... Rf4 {[%clk 0:02:30.8]}
18. Qd3 {[%clk 0:02:19.7]} 18... Raf8 {[%clk 0:02:21.6]} 19. Ned2 {[%clk
0:02:20.5]} 19... Qf7 {[%clk 0:02:04.9]} 20. b5 {[%clk 0:02:05.6]} 20... Nce7
{[%clk 0:02:04.5]} 21. Rc4 {[%clk 0:01:56.6]} 21... Ng6 {[%clk 0:02:02.7]} 22.
Rfc1 {[%clk 0:01:48.5]} 22... Rxc4 {[%clk 0:02:02]} 23. Rxc4 {[%clk 0:01:41.7]}
23... Ngf4 {[%clk 0:02:02.3]} 24. Qe4 {[%clk 0:01:41.2]} 24... Qe7 {[%clk
0:01:59.1]} 25. g3 {[%clk 0:01:34.7]} 25... Nh3+ {[%clk 0:01:42.9]} 26. Kg2
{[%clk 0:01:34]} 26... Ng5 {[%clk 0:01:41.8]} 27. Qd3 {[%clk 0:01:21.7]} 27...
Nxf3 {[%clk 0:01:38.5]} 28. Nxf3 {[%clk 0:01:22.1]} 28... Qf7 {[%clk 0:01:37]}
29. h3 {[%clk 0:01:14.9]} 29... Qh5 {[%clk 0:01:28.8]} 30. a4 {[%clk 0:01:08.2]}
30... Qf7 {[%clk 0:01:26.9]} 31. Rg4 {[%clk 0:01:02.4]} 31... Rc8 {[%clk
0:01:23.6]} 32. Rc4 {[%clk 0:01:02.7]} 32... Rf8 {[%clk 0:01:20.4]} 33. Qe4
{[%clk 0:01:02.8]} 33... Qe7 {[%clk 0:01:19.4]} 34. Qd3 {[%clk 0:01:01.8]} 34...
Qf7 {[%clk 0:01:19]} 35. h4 {[%clk 0:01:02.3]} 35... Qe7 {[%clk 0:01:18.7]} 36.
Rd4 {[%clk 0:00:55]} 36... Qf7 {[%clk 0:01:19]} 37. Rc4 {[%clk 0:00:55.7]} 37...
Qe7 {[%clk 0:01:19.8]} 38. Rd4 {[%clk 0:00:54.3]} 38... Qf7 {[%clk 0:01:20.4]}
39. Rc4 {[%clk 0:00:55.2]} 39... Qe7 {[%clk 0:01:21.1]} 1/2-1/2

[Event "*** MasterClass Titled Tuesday Blitz"]
[Site "Chess.com"]
[Date "2017.07.04"]
[Round "10"]
[White "viggi38"]
[Black "rasmussvane"]
[Result "0-1"]
[WhiteElo "2252"]
[BlackElo "2529"]
[TimeControl "180+2"]
[EndTime "15:16:26 PDT"]
[Termination "rasmussvane won by resignation"]

1. d4 {[%clk 0:03:01.9]} 1... d5 {[%clk 0:03:00.1]} 2. c4 {[%clk 0:03:01.4]}
2... c6 {[%clk 0:03:01.4]} 3. Nc3 {[%clk 0:02:59.5]} 3... Nf6 {[%clk 0:03:02.2]}
4. Nf3 {[%clk 0:03:00.2]} 4... dxc4 {[%clk 0:03:02.7]} 5. a4 {[%clk 0:02:59.7]}
5... e6 {[%clk 0:03:04]} 6. e4 {[%clk 0:02:57.7]} 6... Bb4 {[%clk 0:03:04.9]} 7.
Qc2 {[%clk 0:02:51.1]} 7... b5 {[%clk 0:03:04.5]} 8. Bd2 {[%clk 0:02:39.6]} 8...
Bb7 {[%clk 0:02:50.9]} 9. e5 {[%clk 0:02:35]} 9... Bxc3 {[%clk 0:02:40]} 10.
bxc3 {[%clk 0:02:09.5]} 10... Nd5 {[%clk 0:02:40.6]} 11. Ng5 {[%clk 0:02:09.8]}
11... h6 {[%clk 0:02:28.6]} 12. Ne4 {[%clk 0:02:08.6]} 12... O-O {[%clk
0:02:28.7]} 13. Nd6 {[%clk 0:02:07.7]} 13... Qd7 {[%clk 0:02:23.2]} 14. Be2
{[%clk 0:02:00.6]} 14... a5 {[%clk 0:02:06.7]} 15. Rg1 {[%clk 0:01:58.1]} 15...
Na6 {[%clk 0:02:01.9]} 16. axb5 {[%clk 0:01:53.3]} 16... cxb5 {[%clk 0:02:02.2]}
17. Rxa5 {[%clk 0:01:49.7]} 17... Nac7 {[%clk 0:01:38.7]} 18. Nxb7 {[%clk
0:01:48.7]} 18... Qc6 {[%clk 0:01:30.2]} 19. Rxa8 {[%clk 0:01:41.1]} 19... Rxa8
{[%clk 0:01:32.1]} 20. Nc5 {[%clk 0:01:41.3]} 20... Ra1+ {[%clk 0:01:32.1]} 21.
Bd1 {[%clk 0:01:40.6]} 21... Qa8 {[%clk 0:01:15.2]} 22. Qe4 {[%clk 0:01:00.5]}
22... b4 {[%clk 0:01:13.1]} 23. cxb4 {[%clk 0:00:53.3]} 23... c3 {[%clk
0:01:14.3]} 24. Be3 {[%clk 0:00:43.3]} 24... Qa2 {[%clk 0:01:06.9]} 25. Nd3
{[%clk 0:00:14.5]} 25... c2 {[%clk 0:01:05.2]} 26. Nc1 {[%clk 0:00:15]} 26...
cxd1=Q+ {[%clk 0:01:04.7]} 0-1

[Event "*** MasterClass Titled Tuesday Blitz"]
[Site "Chess.com"]
[Date "2017.07.04"]
[Round "10"]
[White "SuperCheese"]
[Black "ChessQueen"]
[Result "0-1"]
[WhiteElo "2433"]
[BlackElo "2547"]
[TimeControl "180+2"]
[EndTime "15:17:25 PDT"]
[Termination "ChessQueen won by resignation"]

1. d4 {[%clk 0:03:01.9]} 1... Nf6 {[%clk 0:03:00.6]} 2. c4 {[%clk 0:03:03.3]}
2... e6 {[%clk 0:03:01.7]} 3. Nc3 {[%clk 0:03:04.7]} 3... Bb4 {[%clk 0:03:02.5]}
4. a3 {[%clk 0:03:06.1]} 4... Bxc3+ {[%clk 0:03:02.8]} 5. bxc3 {[%clk 0:03:08]}
5... O-O {[%clk 0:03:02]} 6. f3 {[%clk 0:03:08.7]} 6... Nc6 {[%clk 0:02:58]} 7.
e4 {[%clk 0:03:04.4]} 7... d5 {[%clk 0:02:59.1]} 8. cxd5 {[%clk 0:02:57]} 8...
exd5 {[%clk 0:03:00.3]} 9. e5 {[%clk 0:02:58.6]} 9... Nd7 {[%clk 0:02:54.4]} 10.
f4 {[%clk 0:02:58]} 10... Na5 {[%clk 0:02:32.7]} 11. Nf3 {[%clk 0:02:56]} 11...
f5 {[%clk 0:02:14.7]} 12. Bd3 {[%clk 0:02:47.6]} 12... Nb6 {[%clk 0:02:10.3]}
13. O-O {[%clk 0:02:48.2]} 13... Be6 {[%clk 0:02:03.7]} 14. Ng5 {[%clk
0:02:41.7]} 14... Qd7 {[%clk 0:02:04.1]} 15. Qh5 {[%clk 0:02:24.5]} 15... h6
{[%clk 0:02:03.2]} 16. Nxe6 {[%clk 0:02:25.3]} 16... Qxe6 {[%clk 0:02:04]} 17.
Rf3 {[%clk 0:02:27.2]} 17... Nb3 {[%clk 0:01:48.4]} 18. Rb1 {[%clk 0:02:26.5]}
18... Nxc1 {[%clk 0:01:49]} 19. Rxc1 {[%clk 0:02:28.4]} 19... Qf7 {[%clk
0:01:40.9]} 20. Qh4 {[%clk 0:02:20.5]} 20... c5 {[%clk 0:01:37.5]} 21. Rg3
{[%clk 0:02:17.7]} 21... Kh7 {[%clk 0:01:34.4]} 22. Rg5 {[%clk 0:01:37]} 22...
g6 {[%clk 0:01:34.2]} 23. g4 {[%clk 0:01:38.3]} 23... Kg7 {[%clk 0:01:28.9]} 24.
gxf5 {[%clk 0:01:38.5]} 24... hxg5 {[%clk 0:01:28.4]} 25. Qxg5 {[%clk
0:01:30.5]} 25... Nd7 {[%clk 0:00:51.8]} 26. fxg6 {[%clk 0:01:18.5]} 26... Qxf4
{[%clk 0:00:41.5]} 27. Qe7+ {[%clk 0:01:18.8]} 27... Kh6 {[%clk 0:00:43.1]} 28.
Qh7+ {[%clk 0:01:07]} 28... Kg5 {[%clk 0:00:44]} 29. Qe7+ {[%clk 0:00:48.8]}
29... Nf6 {[%clk 0:00:43.8]} 30. Rf1 {[%clk 0:00:21.4]} 30... Qe3+ {[%clk
0:00:45]} 31. Kh1 {[%clk 0:00:22.4]} 31... Qxd3 {[%clk 0:00:46.4]} 32. Rxf6
{[%clk 0:00:20.1]} 32... Rxf6 {[%clk 0:00:42.5]} 33. Qxf6+ {[%clk 0:00:20.6]}
33... Kh5 {[%clk 0:00:42.4]} 34. g7 {[%clk 0:00:18.7]} 34... Qe4+ {[%clk
0:00:42.9]} 35. Kg1 {[%clk 0:00:19.9]} 35... Qg6+ {[%clk 0:00:40.9]} 0-1